bitfinex-derivatives/quotes_ETHF0:USTF0_20251103
["timestamp","ask_amount","ask_price","bid_price","bid_amount"]
[1762131815894,0.1926,3859.8,3859.5,3.2078]
[1762131816084,0.46641,3859.7,3859.5,3.2078]
[1762131816588,0.298,3859.6,3859.5,3.2078]
[1762131817792,0.1926,3859.8,3859.5,3.2078]
[1762131817985,0.659,3859.8,3859.5,3.2078]
[1762131818484,0.298,3859.6,3859.5,3.2078]
[1762131819382,0.1926,3859.8,3859.5,3.2078]
[1762131819991,0.1926,3859.8,3859.6,0.46641]
[1762131820191,0.1926,3859.8,3859.5,3.2078]
[1762131820581,0.659,3859.8,3859.5,3.2078]
[1762131820781,0.46641,3859.7,3859.5,3.2078]
[1762131821181,0.1926,3859.8,3859.5,3.67423]
[1762131821384,0.659,3859.8,3859.5,3.2078]
[1762131821890,0.46641,3859.7,3859.5,3.2078]
[1762131823392,0.1926,3859.8,3859.5,3.2078]
[1762131824296,0.1926,3859.8,3859.6,0.46641]
[1762131824598,0.1926,3859.8,3859.5,3.2078]
[1762131825097,0.46641,3859.7,3859.5,3.2078]
[1762131826594,0.659,3859.8,3859.5,3.67423]
[1762131827102,0.1926,3859.8,3859.5,3.67423]
[1762131827288,0.1926,3859.8,3859.7,0.46641]
[1762131829095,0.1926,3859.8,3859.5,3.67423]
[1762131829295,0.1926,3859.8,3859.6,0.46641]
[1762131829595,0.1926,3859.8,3859.5,3.2078]
[1762131829798,0.1926,3859.8,3859.6,0.46641]
[1762131830502,0.19509399,3860.5,3860.3,0.46633]
[1762131830797,0.19509399,3860.5,3860.4,7.0498]
[1762131834696,0.1926,3861.2,3860.5,1.16578]
[1762131834896,0.1926,3861.2,3861.1,3.2078]
[1762131835103,0.1926,3861.2,3861.1,12.6848]
[1762131835799,0.19589352,3861.2,3861.1,12.68812857]
[1762131837001,0.19589352,3861.2,3861.1,12.68212857]
[1762131837812,0.19589352,3861.2,3861.1,3.21112857]
[1762131837999,0.19589352,3861.2,3861.1,12.67812857]
[1762131840201,0.1926,3861.6,3861.5,0.46618]
[1762131840503,0.1926,3861.6,3861.5,3.67398]
[1762131840898,0.5505,3861.6,3861.5,12.6568]
[1762131841297,0.55285274,3861.6,3861.5,12.6558]
[1762131841898,0.55285274,3861.6,3861.5,3.2078]
[1762131842304,0.19495274,3861.6,3861.5,3.2078]
[1762131843095,0.55285274,3861.6,3861.5,3.2078]
[1762131843503,0.82412,3861.2,3861.1,0.00332857]
[1762131843708,0.82419,3860.6,3860.5,3.2078]
[1762131844706,0.82425,3860.1,3860.0,6.2548]
[1762131845008,0.82425,3860.1,3860.0,3.2099146]
[1762131845207,0.3579,3860.1,3860.0,3.2099146]
[1762131845594,0.3579,3860.1,3860.0,0.0021146]
[1762131846200,0.8243,3859.7,3859.6,3.01526485]
[1762131846910,0.82436,3859.3,3859.2,3.2078]
[1762131847106,0.82436,3859.3,3859.2,3.21093312]
[1762131847508,0.3579,3859.3,3859.2,3.21093312]
[1762131847707,0.46644,3859.5,3859.2,3.21093312]
[1762131847907,0.2265,3859.8,3859.2,3.21093312]
[1762131847908,0.46645,3859.4,3859.2,3.21093312]
[1762131848206,0.2265,3859.8,3859.4,0.46643]
[1762131848406,0.2265,3859.8,3859.7,3.2078]
[1762131849017,0.2265,3859.8,3859.2,0.00313312]
[1762131849018,0.46644,3859.4,3859.3,3.2078]
[1762131850315,0.2265,3859.8,3859.3,3.2078]
[1762131850316,0.46643,3859.5,3859.3,3.2078]
[1762131850510,0.3579,3859.4,3859.3,3.2078]
[1762131850910,0.2265,3859.8,3859.3,3.2078]
[1762131851214,0.46643,3859.5,3859.3,3.2078]
[1762131851607,0.2265,3859.8,3859.3,3.2078]
[1762131851814,0.46641,3859.7,3859.3,3.2078]
[1762131852016,0.46643,3859.5,3859.3,3.2078]
[1762131852816,0.3579,3859.4,3859.3,3.2078]
[1762131853111,0.82435,3859.3,3859.2,0.00313312]
[1762131856111,0.4665,3858.9,3858.8,3.10810043]
[1762131856324,0.8244,3858.9,3858.8,3.10810043]
[1762131857119,0.8244,3858.9,3858.8,3.11053506]
[1762131858823,0.8244,3858.9,3858.8,0.00243463]
[1762131859016,0.3466,3858.4,3858.3,3.2078]
[1762131860024,0.34975917,3858.4,3858.3,3.21055503]
[1762131860818,0.00315917,3858.4,3858.3,3.21055503]
[1762131863419,0.10602444,3858.6,3858.4,0.46656]
[1762131863926,0.10602444,3858.6,3858.3,3.67711503]
[1762131864526,0.10602444,3858.6,3858.4,0.46655]
[1762131864527,0.1083264,3858.6,3858.4,0.46655]
[1762131864926,0.1083264,3858.6,3858.3,3.21055503]
[1762131865227,0.1083264,3858.6,3858.3,12.66255503]
[1762131865826,0.1083264,3858.6,3858.3,3.21055503]
[1762131866022,0.46656,3858.5,3858.3,3.21055503]
[1762131866918,0.3466,3858.4,3858.3,3.21055503]
[1762131867124,0.46656,3858.5,3858.3,3.21055503]
[1762131868124,0.1083264,3858.6,3858.4,0.46655]
[1762131868627,0.1083264,3858.6,3858.4,9.90355]
[1762131869425,0.2009,3859.2,3858.9,0.46649]
[1762131869630,0.2009,3859.2,3859.1,3.2078]
[1762131870528,0.20366296,3859.2,3859.1,3.2078]
[1762131873229,0.20366296,3859.2,3859.1,12.6328]
[1762131877635,0.20366296,3859.2,3859.1,3.2078]
[1762131877835,0.20366296,3859.2,3859.1,12.6188]
[1762131878835,0.20366296,3859.2,3859.1,12.6108]
[1762131879532,0.2265,3859.8,3859.7,0.4664]
[1762131879730,0.69289,3859.8,3859.7,12.6108]
[1762131880737,0.69505131,3859.8,3859.7,12.6108]
[1762131881034,0.46645,3859.4,3859.3,3.2078]
[1762131881235,0.46645,3859.4,3859.3,12.6008]
[1762131882027,0.67543,3859.5,3859.3,12.6008]
[1762131882736,0.67543,3859.5,3859.4,9.389]
[1762131883034,0.67543,3859.5,3859.4,9.387]
[1762131883538,0.67543,3859.5,3859.4,9.383]
[1762131883832,1.02703,3859.5,3859.3,3.2078]
[1762131884038,1.02703,3859.5,3859.4,9.382]
[1762131884627,0.67543,3859.5,3859.3,3.2078]
[1762131887234,0.209,3859.5,3859.3,3.2078]
[1762131887440,0.67543,3859.5,3859.3,3.2078]
[1762131887942,0.209,3859.5,3859.3,7.51625]
[1762131888933,0.209,3859.5,3859.3,3.67425]
[1762131889538,0.209,3859.5,3859.3,3.2078]
[1762131889845,0.67543,3859.5,3859.4,9.374]
[1762131890236,0.67543,3859.5,3859.3,3.2078]
[1762131890636,0.67543,3859.5,3859.4,9.374]
[1762131890830,0.67543,3859.5,3859.3,3.2078]
[1762131891032,0.67543,3859.5,3859.3,12.5818]
[1762131891937,0.209,3859.5,3859.3,12.5818]
[1762131892146,0.209,3859.5,3859.3,13.04824]
[1762131892640,0.67543,3859.5,3859.3,13.04824]
[1762131893037,0.67543,3859.5,3859.3,12.5818]
[1762131896042,0.67543,3859.5,3859.4,9.373]
[1762131896737,0.99803,3859.5,3859.4,12.5808]
[1762131897038,0.99803,3859.5,3859.4,3.2078]
[1762131897245,0.78908,3859.1,3859.0,3.2078]
[1762131897541,0.46653,3858.7,3858.6,3.2078]
[1762131897743,0.78916,3858.4,3858.3,0.00275503]
[1762131898541,1.35268123,3858.4,3858.3,0.00275503]
[1762131899643,0.78916,3858.4,3858.3,0.00275503]
[1762131900148,0.1828,3858.5,3858.3,3.21055503]
[1762131900349,0.1828,3858.5,3858.3,13.05111503]
[1762131900841,0.1828,3858.5,3858.3,3.21055503]
[1762131900842,0.64935,3858.5,3858.3,3.21055503]
[1762131901042,0.97195,3858.5,3858.4,9.374]
[1762131901240,0.64935,3858.5,3858.3,3.21055503]
[1762131901442,0.64935,3858.5,3858.4,9.374]
[1762131901846,0.1828,3858.5,3858.4,9.374]
[1762131902255,0.1828,3859.0,3858.4,9.374]
[1762131902435,0.1828,3859.0,3858.8,3.67431]
[1762131902640,0.1828,3859.0,3858.9,9.374]
[1762131903937,0.1828,3859.0,3858.8,3.2078]
[1762131903938,0.6493,3859.0,3858.8,3.2078]
[1762131904142,0.3226,3858.9,3858.8,3.2078]
[1762131904544,0.78916,3858.4,3858.3,0.00275503]
[1762131904751,0.78916,3858.4,3858.3,9.37675503]
[1762131905238,0.46653,3858.7,3858.3,9.37675503]
[1762131905550,0.46656,3858.5,3858.3,9.37675503]
[1762131906451,0.46655,3858.5,3858.3,9.37675503]
[1762131906650,0.46655,3858.5,3858.3,0.00275503]
[1762131906845,0.46655,3858.5,3858.3,9.37675503]
[1762131907652,0.64935,3858.5,3858.3,9.37675503]
[1762131907849,0.3226,3858.4,3858.3,0.00275503]
[1762131908349,12.09300394,3858.4,3858.3,0.00275503]
[1762131908747,1.16644,3858.3,3857.8,0.47123068]
[1762131909054,0.78922,3857.9,3857.8,0.47123068]
[1762131909648,1.34036647,3858.0,3857.8,0.47123068]
[1762131909951,0.3226,3858.0,3857.9,12.5818]
[1762131910551,0.78922,3857.9,3857.8,0.47324382]
[1762131911050,3.99702,3857.9,3857.8,0.47324382]
[1762131911243,3.99702,3857.9,3857.1,3.2078]
[1762131911244,0.78931,3857.2,3857.1,3.2078]
[1762131912047,0.1828,3857.4,3857.1,3.2078]
[1762131912248,0.1828,3857.4,3857.2,0.4667]
[1762131913861,0.1828,3857.4,3857.1,3.20999432]
[1762131914049,0.64949,3857.4,3857.2,9.375]
[1762131914250,0.64949,3857.4,3857.3,9.375]
[1762131914556,0.64949,3857.4,3857.2,9.375]
[1762131914557,0.4667,3857.3,3857.2,9.375]
[1762131914860,0.4667,3857.3,3857.1,3.20999432]
[1762131915050,0.4667,3857.3,3857.1,12.58499432]
[1762131915251,0.3226,3857.2,3857.1,12.58499432]
[1762131915450,0.3226,3857.2,3857.1,3.20999432]
[1762131916655,0.4667,3857.3,3857.1,3.20999432]
[1762131917955,0.1828,3857.4,3857.2,0.4667]
[1762131918160,0.1828,3857.4,3857.1,3.20999432]
[1762131918464,0.1828,3857.4,3857.1,3.67671432]
[1762131918655,0.1828,3857.4,3857.2,0.4667]
[1762131919053,0.4667,3857.3,3857.1,3.20999432]
[1762131919660,0.7702,3857.3,3857.2,3.892]
[1762131919854,0.7702,3857.3,3857.1,3.20999432]
[1762131920065,0.7702,3857.3,3857.2,5.07]
[1762131920259,0.7702,3857.3,3857.1,3.20999432]
[1762131920260,0.3035,3857.2,3857.1,3.20999432]
[1762131920461,0.3035,3857.2,3857.1,12.58499432]
[1762131920663,0.3035,3857.2,3857.1,3.20999432]
[1762131923066,0.1709,3856.5,3855.8,3.2078]
[1762131923362,0.46684,3856.1,3856.0,0.1089]
[1762131923567,0.46687,3855.9,3855.8,3.2078]
[1762131923874,0.46687,3855.9,3855.8,12.6917]
[1762131924258,0.46686,3856.0,3855.9,0.1089]
[1762131925759,0.00226977,3856.1,3856.0,0.1089]
[1762131927069,0.64915,3856.0,3855.8,0.00258382]
[1762131927267,0.2987,3855.9,3855.8,0.00258382]
[1762131927476,0.2987,3855.9,3855.8,9.37858382]
[1762131927967,0.94791,3855.5,3855.4,3.2078]
[1762131928355,0.64921,3855.5,3855.4,3.2078]
[1762131928859,0.64921,3855.5,3855.4,3.3399]
[1762131929062,0.64921,3855.5,3855.4,12.7159]
[1762131929257,0.1823,3855.5,3855.4,12.71810281]
[1762131929860,0.1823,3855.5,3855.4,12.58600281]
[1762131930068,0.1823,3855.5,3855.4,3.21000281]
[1762131930265,0.1823,3855.5,3855.4,12.58600281]
[1762131931464,0.1823,3855.5,3855.4,3.21000281]
[1762131931660,0.1823,3856.0,3855.9,0.1321]
[1762131932061,0.00226977,3856.1,3856.0,0.1321]
[1762131932463,0.00226977,3856.1,3856.0,9.5081]
[1762131938076,0.00226977,3856.1,3856.0,0.1321]
[1762131938373,0.00226977,3856.1,3856.0,9.5071]
[1762131940672,0.1823,3856.0,3855.9,3.2078]
[1762131940872,0.1823,3856.0,3855.9,12.7149]
[1762131941773,0.1823,3856.0,3855.9,9.5071]
[1762131941980,0.1823,3856.0,3855.9,12.7149]
[1762131942881,0.1823,3856.0,3855.9,3.3399]
[1762131943180,0.1823,3856.0,3855.9,12.7139]
[1762131945477,0.1823,3856.0,3855.9,13.18077]
[1762131945677,0.1823,3856.0,3855.9,12.7139]
[1762131946478,0.00226977,3856.1,3856.0,0.59896]
[1762131949068,0.00226977,3856.1,3856.0,4.44096]
[1762131950279,0.46678,3856.7,3856.1,0.46684]
[1762131950485,0.1627,3856.5,3856.4,0.0668]
[1762131950669,0.4467,3856.5,3856.3,3.2078]
[1762131950880,0.284,3856.4,3856.3,3.2078]
[1762131951176,0.2859319,3856.4,3856.3,11.7758]
[1762131951377,0.84883529,3856.4,3856.3,11.7758]
[1762131952375,0.0019319,3856.4,3856.3,11.8426]
[1762131954378,0.0019319,3856.4,3856.3,3.2746]
[1762131954582,0.0019319,3856.4,3856.3,12.6456]
[1762131956182,0.0019319,3856.4,3856.3,3.2746]
[1762131956378,0.0019319,3856.4,3856.3,12.6446]
[1762131959782,0.0019319,3856.4,3856.3,12.6436]
[1762131959972,3.2078,3857.7,3856.9,0.53164]
[1762131960176,1.02936007,3857.4,3857.3,0.0649]
[1762131960477,0.56267007,3857.4,3857.3,9.4329]
[1762131960678,0.64898,3857.5,3857.4,0.0649]
[1762131960973,0.6518859,3857.5,3857.4,0.0649]
[1762131961179,0.0029059,3857.5,3857.4,0.0649]
[1762131961582,0.46658,3858.3,3858.2,0.062]
[1762131962088,0.1627,3858.5,3858.2,0.062]
[1762131962398,0.46652,3858.8,3858.7,0.062]
[1762131962684,0.00209542,3858.8,3858.7,9.43173535]
[1762131963184,0.00209542,3858.8,3858.7,0.06473535]
[1762131963384,0.28609542,3858.8,3858.7,0.00273535]
[1762131963577,0.75058,3858.3,3858.2,3.2078]
[1762131963785,0.1627,3858.0,3857.6,3.2698]
[1762131964088,0.1627,3858.0,3857.9,0.062]
[1762131964388,0.62926,3858.5,3857.9,0.062]
[1762131964580,0.1627,3858.5,3858.3,0.062]
[1762131964883,0.284,3858.4,3858.3,0.00257123]
[1762131965082,0.62926,3858.5,3858.3,0.00257123]
[1762131965290,0.1627,3858.5,3858.4,3.841]
[1762131965490,0.00209542,3858.8,3858.4,3.841]
[1762131965681,0.00209542,3858.8,3858.7,0.062]
[1762131966982,0.00209542,3858.8,3858.7,9.426]
[1762131968185,0.1627,3858.5,3858.4,3.2698]
[1762131968589,0.1627,3858.5,3858.4,12.6318]
[1762131968898,0.46655,3858.6,3858.4,12.6318]
[1762131969081,0.46655,3858.6,3858.5,0.062]
[1762131969283,0.46655,3858.6,3858.5,9.424]
[1762131969582,0.46861542,3858.8,3858.5,9.424]
[1762131969784,0.46654,3858.6,3858.5,9.424]
[1762131970694,0.46654,3858.6,3858.5,9.423]
[1762131971488,0.46657,3858.4,3858.3,0.00257123]
[1762131971688,0.46657,3858.4,3858.3,9.42457123]
[1762131972594,0.00209542,3858.8,3858.3,13.20457123]
[1762131972785,0.46861542,3858.8,3858.7,0.062]
[1762131972982,0.46861542,3858.8,3858.7,9.422]
[1762131973387,0.75261542,3858.8,3858.7,9.36]
[1762131973789,0.46656,3858.5,3858.4,3.2698]
[1762131973992,0.46656,3858.5,3858.4,12.6288]
[1762131974186,0.46861542,3858.8,3858.7,0.062]
[1762131974891,0.46647,3859.2,3858.4,13.03336]
[1762131975088,3.2078,3859.7,3858.8,3.2078]
[1762131975089,0.46642,3859.7,3858.8,3.2078]
[1762131975384,0.46642,3859.7,3859.5,3.2078]
[1762131975578,0.1627,3860.0,3859.1,3.2078]
[1762131975579,0.73377,3859.2,3859.1,3.2078]
[1762131975983,0.73599558,3859.2,3859.1,3.2078]
[1762131978288,0.46869558,3859.2,3859.1,3.2078]
[1762131978592,0.73599558,3859.2,3859.1,3.2078]
[1762131978791,0.26952558,3859.2,3858.7,3.2078]
[1762131978991,0.26952558,3859.2,3858.4,1.63]
[1762131978992,0.4145,3858.5,3858.4,1.63]
[1762131979687,8.4145,3858.5,3858.4,0.8243]
[1762131980389,8.97692629,3858.5,3858.4,0.8243]
[1762131981289,9.21757651,3858.5,3858.4,0.8243]
[1762131981687,0.2673,3858.4,3858.3,0.00257123]
[1762131981894,0.82972629,3858.4,3858.3,0.00257123]
[1762131982491,0.82972629,3858.4,3857.2,4.772]
[1762131982492,9.07053328,3858.4,3857.2,4.772]
[1762131982697,3.2078,3857.9,3857.0,3.3663]
[1762131983592,3.2078,3857.9,3857.0,3.36910238]
[1762131983899,0.1472,3858.0,3857.0,0.16130238]
[1762131983900,3.2078,3857.4,3857.0,0.16130238]
[1762131985994,0.2726,3857.1,3857.0,0.00280238]
[1762131986495,3.2078,3857.4,3857.0,0.29060238]
[1762131987199,0.46672,3857.2,3857.1,0.2878]
[1762131988492,3.67443,3857.8,3857.7,0.2878]
[1762131990699,0.73931,3857.2,3857.1,0.2878]
[1762131990893,0.2726,3857.1,3857.0,0.00280238]
[1762131991286,0.2726,3857.1,3857.0,2.38e-06]
[1762131992697,0.4504,3857.0,3856.0,0.1585]
[1762131993005,1.01342747,3857.0,3856.0,0.1585]
[1762131993396,0.4504,3857.0,3856.0,0.1585]
[1762131993698,9.01313955,3857.0,3855.5,3.3843]
[1762131993902,3.2078,3856.3,3855.4,3.339]
[1762131994098,3.2078,3856.3,3855.5,0.1607]
[1762131994403,3.2078,3856.3,3855.1,3.2078]
[1762131994797,3.21043135,3856.3,3855.1,3.21088028]
[1762131995603,3.21043135,3856.3,3855.1,12.33488028]
[1762131995805,3.2078,3855.9,3855.1,12.33488028]
[1762131997511,3.2078,3855.9,3855.1,3.21088028]
[1762131999011,0.46695,3855.3,3855.2,0.2878]
[1762132000823,0.46695,3855.3,3855.1,3.21088028]
[1762132000824,0.2726,3855.2,3855.1,3.21088028]
[1762132001026,0.2726,3855.2,3855.1,0.00308028]
[1762132002718,0.46691,3855.5,3855.4,0.2878]
[1762132003229,0.46689,3855.7,3855.4,0.2878]
[1762132003429,0.46691,3855.6,3855.5,0.2878]
[1762132004327,0.46689,3855.7,3855.6,0.2878]
[1762132005129,3.3856,3856.0,3855.6,0.2878]
[1762132006225,3.67466,3856.0,3855.9,0.2861]
[1762132006426,3.2078,3856.0,3855.9,0.2861]
[1762132007024,0.46945135,3856.3,3856.2,0.2861]
[1762132007219,0.00263135,3856.3,3856.2,0.2861]
[1762132007824,0.00263135,3856.3,3856.2,0.75293]
[1762132008630,0.46945135,3856.3,3856.2,0.2861]
[1762132008831,0.46684,3856.1,3856.0,0.2861]
[1762132009023,0.46945135,3856.3,3856.2,0.2861]
[1762132009425,0.00263135,3856.3,3856.2,3.4939]
[1762132010826,3.135e-05,3856.3,3856.2,3.4939]
[1762132012338,3.135e-05,3856.3,3856.2,0.2861]
[1762132012528,3.135e-05,3856.3,3856.2,11.1089]
[1762132013237,3.135e-05,3856.3,3856.2,12.8409]
[1762132014535,3.135e-05,3856.3,3856.2,12.8399]
[1762132014932,0.46685,3856.1,3855.8,3.2078]
[1762132015125,3.135e-05,3856.3,3855.9,9.346]
[1762132015526,0.46686,3856.0,3855.8,3.2078]
[1762132015822,0.46686,3856.0,3855.8,10.5198]
[1762132016022,3.135e-05,3856.3,3855.8,3.2078]
[1762132016226,0.46685,3856.0,3855.9,0.2861]
[1762132017232,0.93955,3856.0,3855.8,3.2078]
[1762132018230,0.4727,3856.0,3855.8,3.2078]
[1762132018428,3.20783135,3856.3,3855.8,3.2078]
[1762132018429,0.46683,3856.2,3856.1,0.2861]
[1762132020940,0.46683,3856.2,3855.5,0.1803]
[1762132020941,0.3023,3855.2,3854.8,3.2078]
[1762132021142,0.3023,3854.8,3854.7,0.02594269]
[1762132021337,3.9771,3854.8,3854.7,0.02594269]
[1762132021640,3.5101,3854.8,3854.7,0.02594269]
[1762132022235,3.5101,3854.8,3854.7,0.02829745]
[1762132026548,4.21359135,3854.8,3853.6,3.2078]
[1762132026743,3.2078,3854.4,3853.2,3.2078]
[1762132026947,0.3023,3852.9,3852.8,3.2078]
[1762132027241,0.3023,3852.9,3852.4,3.2078]
[1762132027634,0.30521405,3852.9,3852.4,3.21100888]
[1762132028038,0.4727,3852.5,3852.4,0.00320888]
[1762132028240,0.4727,3852.5,3851.4,3.2078]
[1762132028241,0.3023,3851.5,3851.4,3.2078]
[1762132028446,0.4727,3851.5,3850.9,3.2078]
[1762132028648,0.4727,3851.5,3850.9,3.67527]
[1762132028851,0.4727,3851.5,3851.0,0.46745]
[1762132029149,0.4727,3851.5,3851.0,0.00308098]
[1762132029346,0.1704,3852.0,3851.4,3.4939]
[1762132029543,3.2078,3852.1,3851.5,0.4674]
[1762132029845,0.1704,3852.0,3851.4,3.2078]
[1762132030045,0.1704,3852.0,3851.4,3.6752]
[1762132030238,0.1704,3852.5,3852.2,0.46731]
[1762132030442,0.1704,3852.5,3852.3,3.2078]
[1762132030652,0.3023,3852.4,3852.3,3.2078]
[1762132030852,0.00291405,3852.9,3852.5,0.46727]
[1762132031144,0.00291405,3852.9,3851.7,1.16845]
[1762132031145,0.00291405,3852.9,3852.7,3.2078]
[1762132031451,0.3023,3852.8,3852.7,3.2078]
[1762132032246,0.76954,3852.8,3851.8,9.344]
[1762132032448,3.5101,3852.8,3852.1,3.2078]
[1762132032659,3.5101,3852.8,3852.1,3.67512]
[1762132032847,0.1704,3852.6,3852.1,3.67512]
[1762132033049,0.1704,3852.6,3851.6,3.2078]
[1762132033050,0.3023,3852.2,3851.6,3.2078]
[1762132033247,0.3023,3852.2,3851.8,0.46735]
[1762132033550,0.1704,3852.6,3852.4,0.46728]
[1762132033741,0.00291405,3852.9,3852.5,3.2078]
[1762132034552,0.00291405,3852.9,3852.7,0.46725]
[1762132035649,0.00291405,3852.9,3852.5,3.2078]
[1762132036043,0.00291405,3852.9,3852.5,3.67507]
[1762132036352,0.00291405,3852.9,3852.7,0.46724]
[1762132036648,0.00291405,3852.9,3852.8,0.2649]
[1762132039149,0.00291405,3852.9,3852.5,3.2078]
[1762132039349,0.00291405,3852.9,3852.5,3.67506]
[1762132039556,0.00291405,3852.9,3852.6,0.46725]
[1762132039846,0.00291405,3852.9,3852.7,0.46724]
[1762132040643,0.00291405,3852.9,3852.5,3.2078]
[1762132041045,0.00291405,3852.9,3852.6,0.46725]
[1762132041458,0.00291405,3852.9,3852.7,0.46724]
[1762132042749,0.00291405,3852.9,3852.8,0.2649]
[1762132043053,0.00291405,3852.9,3852.5,3.67506]
[1762132043356,0.00291405,3852.9,3852.6,0.46725]
[1762132043752,0.00291405,3852.9,3852.5,3.2078]
[1762132043753,0.2537,3852.6,3852.5,3.2078]
[1762132044656,0.00291405,3852.9,3852.5,3.5443]
[1762132044956,0.00291405,3852.9,3852.5,3.2078]
[1762132045157,0.00291405,3852.9,3852.5,3.67507]
[1762132045362,0.47014405,3852.9,3852.5,3.2078]
[1762132046052,0.46724,3852.8,3852.5,3.2078]
[1762132046860,0.46724,3852.8,3852.5,3.67507]
[1762132047059,0.00291405,3852.9,3852.5,3.2078]
[1762132047264,0.00291405,3852.9,3852.8,0.2569]
[1762132049663,0.47014405,3852.9,3852.5,3.3609]
[1762132049961,0.47014405,3852.9,3852.5,3.82817]
[1762132050259,0.00291405,3852.9,3852.5,3.3609]
[1762132050459,0.00291405,3852.9,3852.8,0.2569]
[1762132054862,0.00291405,3852.9,3852.8,3.4647]
[1762132056162,0.00291405,3852.9,3852.8,12.8067]
[1762132057265,0.25681405,3852.9,3852.8,3.2078]
[1762132057854,0.2539,3852.4,3851.9,3.2078]
[1762132058058,0.2539,3852.4,3852.0,0.1531]
[1762132058259,0.4673,3852.4,3852.0,0.1531]
[1762132058459,0.46731,3852.3,3852.2,0.2569]
[1762132058660,0.1603,3852.5,3851.9,3.2078]
[1762132058959,0.46732,3852.2,3852.1,0.2569]
[1762132059460,0.2539,3852.2,3851.9,3.2078]
[1762132059655,0.88154,3852.0,3851.9,3.2078]
[1762132060054,0.4142,3852.0,3851.9,3.2078]
[1762132061063,3.3681,3852.5,3851.9,3.93205]
[1762132061064,0.4673,3852.4,3851.9,3.93205]
[1762132061265,0.46732,3852.2,3851.9,3.4647]
[1762132061671,3.3681,3852.5,3852.3,0.2569]
[1762132061870,0.46731,3852.3,3852.0,0.1499]
[1762132062062,0.46731,3852.3,3851.9,3.2078]
[1762132062461,0.46731,3852.3,3851.9,3.67514]
[1762132063569,0.2539,3852.0,3851.9,3.2078]
[1762132063770,0.46733,3852.1,3851.9,3.4647]
[1762132063971,0.72123,3852.1,3851.9,3.2078]
[1762132064367,0.4673,3852.3,3852.0,0.2569]
[1762132064670,0.46731,3852.2,3852.0,0.2569]
[1762132065175,3.3681,3852.5,3852.0,0.2569]
[1762132065377,0.4673,3852.3,3852.0,0.2569]
[1762132066075,0.46732,3852.2,3852.0,0.2569]
[1762132066277,3.3681,3852.5,3852.0,0.2569]
[1762132066574,0.46731,3852.3,3852.0,0.2569]
[1762132066771,0.46731,3852.2,3852.0,0.2569]
[1762132067068,0.46729,3852.4,3852.0,0.2569]
[1762132067267,0.4673,3852.3,3852.0,0.2569]
[1762132068474,0.46732,3852.2,3852.0,0.2569]
[1762132069367,3.3681,3852.5,3852.1,0.2445]
[1762132069569,0.79598723,3852.4,3852.3,0.2445]
[1762132069870,0.46732,3852.1,3852.0,0.2445]
[1762132070262,0.46729,3852.4,3852.0,0.356]
[1762132070469,0.46731,3852.2,3852.0,0.2445]
[1762132071270,0.46729,3852.4,3852.0,0.2445]
[1762132071471,0.4673,3852.3,3852.0,0.2445]
[1762132071678,0.3823,3852.0,3851.9,3.2078]
[1762132071978,0.46732,3852.1,3852.0,0.2445]
[1762132072583,0.46731,3852.3,3852.0,0.2445]
[1762132072775,3.83538,3852.5,3852.0,0.2445]
[1762132072967,0.4673,3852.3,3852.2,0.2445]
[1762132073674,0.00291405,3852.9,3852.8,0.2445]
[1762132074070,0.70404405,3852.9,3852.5,3.2078]
[1762132074670,0.46724,3852.8,3852.5,3.2078]
[1762132075173,0.46724,3852.8,3852.5,3.67507]
[1762132075377,0.47014405,3852.9,3852.6,0.46726]
[1762132075676,0.47014405,3852.9,3852.8,0.2445]
[1762132075872,0.46724,3852.8,3852.5,3.3442]
[1762132076079,0.46726,3852.7,3852.5,3.2078]
[1762132076374,1.11294516,3852.6,3852.5,3.2078]
[1762132076774,1.11294516,3852.6,3852.0,3.2078]
[1762132076775,0.46733,3852.1,3852.0,3.2078]
[1762132076977,1.34634516,3852.3,3852.2,0.2445]
[1762132077469,0.00291405,3852.9,3852.8,0.2445]
[1762132077686,0.56490812,3852.9,3852.8,0.2445]
[1762132077874,0.23681405,3852.9,3852.5,0.1364]
[1762132078075,0.23681405,3852.9,3852.8,0.2445]
[1762132078076,0.00291405,3852.9,3852.8,0.2445]
[1762132078672,0.23681405,3852.9,3852.4,3.2078]
[1762132079083,0.70404405,3852.9,3852.4,3.2078]
[1762132079373,0.46724,3852.8,3852.4,3.2078]
[1762132079573,0.70116,3852.7,3852.6,0.2445]
[1762132079776,0.70116,3852.7,3852.4,3.2078]
[1762132079981,0.00291405,3852.9,3852.6,0.2445]
[1762132080581,0.00291405,3852.9,3852.8,0.2445]
[1762132080769,0.00291405,3852.9,3852.8,3.91954]
[1762132080976,0.00291405,3852.9,3852.8,0.2445]
[1762132081182,0.00291405,3852.9,3852.8,3.4523]
[1762132083673,3.2078,3854.0,3853.5,0.0682]
[1762132083873,3.3562,3854.0,3853.2,3.2078]
[1762132084076,0.46717,3853.4,3853.2,3.2078]
[1762132084281,0.2339,3853.3,3853.2,3.2078]
[1762132084573,0.23683576,3853.3,3853.2,3.2078]
[1762132087078,0.00293576,3853.3,3853.2,3.4523]
[1762132087980,3.82323,3854.5,3854.0,0.1364]
[1762132088177,0.56209513,3854.4,3854.3,0.2445]
[1762132088378,0.19811098,3854.9,3854.8,0.2445]
[1762132088583,3.2078,3855.7,3855.6,0.2445]
[1762132088882,3.2078,3856.6,3856.5,0.2445]
[1762132089085,0.56208509,3856.6,3856.5,0.2445]
[1762132089292,0.00233666,3856.6,3856.5,0.2445]
[1762132089679,0.46681,3856.4,3855.7,9.328]
[1762132089988,0.00233666,3856.6,3856.5,0.2445]
[1762132090485,0.00233666,3856.6,3856.1,3.2078]
[1762132091084,0.46679,3856.5,3856.1,3.2078]
[1762132091285,0.46681,3856.4,3856.1,3.2078]